fUSD/lending_fUSD_20240712
["ID","MTS","AMOUNT","RATE_DAILY","PERIOD"]
[331886246,1720816249445,-899.22,0.00013969,2]
[331886248,1720816249455,-500.0,0.00013969,2]
[331886250,1720816249464,-1671.18,0.00013969,2]
[331886252,1720816249473,-500.0,0.00013969,2]
[331886254,1720816249483,-500.0,0.00013969,2]
[331886256,1720816249493,-671.63,0.00013969,2]
[331886258,1720816249502,-500.0,0.00013969,2]
[331886260,1720816249512,-500.0,0.00013969,2]
[331886262,1720816249521,-4328.2,0.00013969,2]
[331886264,1720816249531,-921.56,0.00013969,2]
[331886266,1720816249540,-151.0,0.0001397,2]
[331886268,1720816249550,-157.57858,0.0001397,2]
[331886270,1720816249560,-157.57858,0.0001397,2]
[331886272,1720816249569,-151.0,0.0001397,2]
[331886274,1720816249578,-151.0,0.0001397,2]
[331886276,1720816249587,-151.0,0.0001397,2]
[331886278,1720816249597,-151.0,0.0001397,2]
[331886280,1720816249607,-206.246367,0.0001397,2]
[331886282,1720816249617,-206.246367,0.0001397,2]
[331886284,1720816249626,-184.749076,0.0001397,2]
[331886286,1720816249636,-184.749076,0.0001397,2]
[331886288,1720816249645,-234.004614,0.0001397,2]
[331886290,1720816249655,-151.0,0.0001397,2]
[331886292,1720816249664,-190.5954,0.0001397,2]
[331886294,1720816249674,-151.0,0.0001397,2]
[331886296,1720816249684,-971.0,0.00013978,2]
[331886298,1720816249693,-34980.5616506,0.00013978,2]
[331886300,1720816249702,-528.46,0.00013978,2]
[331886302,1720816249711,-500.0,0.00013978,2]
[331886304,1720816249721,-500.0,0.00013978,2]
[331886306,1720816249731,-500.0,0.00013978,2]
[331886308,1720816249740,-502.23,0.00013978,2]
[331886310,1720816249750,-521.74,0.00013978,2]
[331886312,1720816249759,-571.44,0.00013978,2]
[331886314,1720816249768,-500.0,0.00013978,2]
[331886316,1720816249777,-500.0,0.00013978,2]
[331886318,1720816249786,-828.69,0.00013978,2]
[331886320,1720816249796,-500.0,0.00013978,2]
[331886322,1720816249808,-875.33,0.00013978,2]
[331886324,1720816249817,-500.0,0.00013978,2]
[331886326,1720816249826,-500.0,0.00013978,2]
[331886327,1720816249836,-806.82,0.00013978,2]
[331886329,1720816249845,-500.0,0.00013978,2]
[331886331,1720816249855,-722.92,0.00013978,2]
[331886333,1720816249864,-508.54,0.00013978,2]
[331886335,1720816249874,-500.0,0.00013978,2]
[331886338,1720816249883,-524.02,0.00013978,2]
[331886340,1720816249892,-500.0,0.00013978,2]
[331886342,1720816249902,-500.0,0.00013978,2]
[331886344,1720816249911,-485.17205286,0.00013978,2]
[331886346,1720816249920,-671.97,0.00013978,2]
[331886347,1720816249929,-623.62,0.00013978,2]
[331886349,1720816249938,-567.73,0.00013978,2]
[331886351,1720816249947,-701.4,0.00013978,2]
[331886353,1720816249956,-552.91,0.00013978,2]
[331886355,1720816249966,-557.04,0.00013978,2]
[331886357,1720816249975,-500.0,0.00013978,2]
[331886359,1720816249984,-806.69,0.00013978,2]
[331886361,1720816249993,-924.76,0.00013978,2]
[331886363,1720816250003,-500.0,0.00013978,2]
[331886365,1720816250011,-500.0,0.00013978,2]
[331886367,1720816250020,-624.7,0.00013978,2]
[331886369,1720816250030,-757.25,0.00013978,2]
[331886371,1720816250039,-500.0,0.00013978,2]
[331886373,1720816250048,-500.0,0.00013978,2]
[331886374,1720816250057,-151.0,0.00013978,2]
[331886375,1720816250067,-500.0,0.00013978,2]
[331886376,1720816250076,-151.0,0.00013978,2]
[331886377,1720816250085,-151.0,0.00013978,2]
[331886378,1720816250094,-500.0,0.00013978,2]
[331886379,1720816250106,-500.0,0.00013978,2]
[331886380,1720816250116,-500.0,0.00013978,2]
[331886381,1720816250126,-500.0,0.00013978,2]
[331886382,1720816250136,-500.0,0.00013978,2]
[331886383,1720816250145,-500.0,0.00013978,2]
[331886384,1720816250156,-509.03,0.00013978,2]
[331886385,1720816250165,-500.0,0.00013978,2]
[331886386,1720816250175,-500.0,0.00013978,2]
[331886387,1720816250186,-500.0,0.00013978,2]
[331886389,1720816250196,-518.62,0.00013978,2]
[331886390,1720816250206,-500.0,0.00013978,2]
[331886392,1720816250215,-573.03,0.00013978,2]
[331886394,1720816250224,-587.04,0.00013978,2]
[331886396,1720816250234,-500.0,0.00013978,2]
[331886398,1720816250243,-739.6,0.00013978,2]
[331886400,1720816250252,-858.76,0.00013978,2]
[331886402,1720816250261,-500.0,0.00013978,2]
[331886404,1720816250271,-526.46,0.00013978,2]
[331886406,1720816250281,-500.0,0.00013978,2]
[331886408,1720816250290,-500.0,0.00013978,2]
[331886410,1720816250299,-500.0,0.00013978,2]
[331886412,1720816250308,-697.6,0.00013978,2]
[331886413,1720816250317,-883.61,0.00013978,2]
[331886415,1720816250327,-507.16,0.00013978,2]
[331886417,1720816250337,-500.0,0.00013978,2]
[331886419,1720816250346,-500.0,0.00013979,2]
[331886421,1720816250359,-500.0,0.00013979,2]
[331886423,1720816250369,-500.0,0.00013979,2]
[331886425,1720816250378,-527.75,0.00013979,2]
[331886427,1720816250387,-520.63,0.00013979,2]
[331886429,1720816250397,-500.0,0.00013979,2]
[331886431,1720816250406,-500.0,0.00013979,2]
[331886433,1720816250418,-500.09,0.00013979,2]
[331886436,1720816250428,-500.0,0.00013979,2]
[331886438,1720816250438,-500.0,0.00013979,2]
[331886440,1720816250447,-500.0,0.00013979,2]
[331886442,1720816250459,-500.0,0.00013979,2]
[331886444,1720816250469,-500.0,0.00013979,2]
[331886446,1720816250478,-256.1239693,0.00013979,2]
[331886448,1720816250487,-500.0,0.00013979,2]
[331886450,1720816250496,-538.01,0.00013979,2]
[331886452,1720816250506,-500.0,0.00013979,2]
[331886453,1720816250515,-500.0,0.00013979,2]
[331886456,1720816250529,-500.0,0.00013979,2]
[331886458,1720816250539,-500.0,0.00013979,2]
[331886460,1720816250548,-500.0,0.00013979,2]
[331886462,1720816250557,-500.0,0.00013979,2]
[331886464,1720816250566,-500.0,0.00013979,2]
[331886466,1720816250576,-500.0,0.00013979,2]
[331886468,1720816250585,-500.0,0.00013979,2]
[331886470,1720816250594,-500.0,0.00013979,2]
[331886472,1720816250609,-554.13,0.00013979,2]
[331886474,1720816250618,-500.0,0.00013979,2]
[331886476,1720816250627,-500.0,0.00013979,2]
[331886478,1720816250639,-500.0,0.00013979,2]
[331886480,1720816250649,-500.0,0.00013979,2]
[331886482,1720816250658,-500.0,0.00013979,2]
[331886484,1720816250667,-500.0,0.00013979,2]
[331886486,1720816250677,-500.0,0.00013979,2]
[331886488,1720816250686,-500.0,0.00013979,2]
[331886490,1720816250695,-500.0,0.00013979,2]
[331886492,1720816250704,-500.0,0.00013979,2]
[331886494,1720816250713,-213.13025492,0.00013979,2]
[331886496,1720816250723,-500.0,0.00013979,2]
[331886498,1720816250732,-500.0,0.00013979,2]
[331886500,1720816250741,-500.0,0.00013979,2]
[331886502,1720816250750,-500.0,0.00013979,2]
[331886504,1720816250759,-500.0,0.00013979,2]
[331886506,1720816250768,-500.0,0.00013979,2]
[331886508,1720816250777,-500.0,0.00013979,2]
[331886510,1720816250787,-500.0,0.00013979,2]
[331886511,1720816250796,-500.0,0.00013979,2]
[331886513,1720816250808,-500.0,0.00013979,2]
[331886515,1720816250818,-500.0,0.00013979,2]
[331886517,1720816250827,-663.97,0.00013979,2]
[331886519,1720816250836,-151.0,0.00013979,2]
[331886521,1720816250847,-500.0,0.00013979,2]
[331886524,1720816250859,-500.0,0.00013979,2]
[331886526,1720816250868,-500.0,0.00013979,2]
[331886528,1720816250880,-151.0,0.00013979,2]
[331886530,1720816250890,-534.8,0.00013979,2]
[331886532,1720816250899,-500.0,0.00013979,2]
[331886534,1720816250909,-500.0,0.00013979,2]
[331886536,1720816250918,-655.92,0.00013979,2]
[331886538,1720816250928,-500.0,0.00013979,2]
[331886540,1720816250937,-500.0,0.00013979,2]
[331886542,1720816250946,-151.0,0.00013979,2]
[331886544,1720816250957,-500.0,0.00013979,2]
[331886546,1720816250966,-500.0,0.00013979,2]
[331886547,1720816250975,-500.0,0.00013979,2]
[331886549,1720816250985,-500.0,0.00013979,2]
[331886551,1720816250994,-151.0,0.00013979,2]
[331886553,1720816251004,-839.75,0.00013979,2]
[331886556,1720816251014,-500.0,0.00013979,2]
[331886558,1720816251023,-500.0,0.00013979,2]
[331886560,1720816251033,-500.0,0.00013979,2]
[331886562,1720816251042,-500.0,0.00013979,2]
[331886564,1720816251051,-500.0,0.00013979,2]
[331886566,1720816251061,-500.0,0.00013979,2]
[331886568,1720816251070,-500.0,0.00013979,2]
[331886569,1720816251079,-500.0,0.00013979,2]
[331886571,1720816251088,-500.0,0.00013979,2]
[331886573,1720816251097,-500.0,0.00013979,2]
[331886575,1720816251109,-500.0,0.00013979,2]
[331886577,1720816251118,-500.0,0.00013979,2]
[331886579,1720816251128,-151.0,0.00013979,2]
[331886582,1720816251139,-151.0,0.00013979,2]
[331886584,1720816251148,-151.0,0.00013979,2]
[331886586,1720816251157,-588.34,0.00013979,2]
[331886588,1720816251167,-500.0,0.00013979,2]
[331886590,1720816251176,-500.0,0.00013979,2]
[331886592,1720816251186,-500.0,0.00013979,2]
[331886594,1720816251195,-647.9,0.00013979,2]
[331886596,1720816251204,-151.0,0.00013979,2]
[331886598,1720816251214,-500.0,0.00013979,2]
[331886600,1720816251224,-794.08,0.00013979,2]
[331886602,1720816251234,-721.8,0.00013979,2]
[331886604,1720816251244,-500.0,0.00013979,2]
[331886606,1720816251255,-500.0,0.00013979,2]
[331886608,1720816251264,-839.39,0.00013979,2]
[331886610,1720816251273,-507.28,0.00013979,2]
[331886612,1720816251283,-500.0,0.00013979,2]
[331886614,1720816251292,-151.0,0.00013979,2]
[331886616,1720816251301,-785.04,0.00013979,2]
[331886618,1720816251311,-786.93,0.00013979,2]
[331886620,1720816251320,-500.0,0.00013979,2]
[331886622,1720816251330,-513.63,0.00013979,2]
[331886624,1720816251339,-500.0,0.00013979,2]
[331886626,1720816251349,-151.0,0.00013979,2]
[331886628,1720816251359,-151.0,0.00013979,2]
[331886630,1720816251369,-500.0,0.00013979,2]
[331886632,1720816251378,-151.0,0.00013979,2]
[331886634,1720816251388,-586.74,0.00013979,2]
[331886636,1720816251397,-157.57858,0.00013979,2]
[331886638,1720816251406,-500.0,0.00013979,2]
[331886640,1720816251415,-157.57858,0.00013979,2]
[331886642,1720816251424,-500.0,0.00013979,2]
[331886644,1720816251433,-500.0,0.00013979,2]
[331886646,1720816251443,-151.0,0.00013979,2]
[331886660,1720816251563,-500.0,0.00013979,2]
[331886662,1720816251572,-500.0,0.00013979,2]
[331886664,1720816251582,-500.0,0.00013979,2]
[331886667,1720816251591,-151.0,0.00013979,2]
[331886669,1720816251602,-500.0,0.00013979,2]
[331886670,1720816251611,-151.0,0.00013979,2]
[331886673,1720816251620,-151.0,0.00013979,2]
[331886674,1720816251629,-206.246367,0.00013979,2]
[331886676,1720816251638,-206.246367,0.00013979,2]
[331886678,1720816251647,-184.749076,0.00013979,2]
[331886680,1720816251657,-184.749076,0.00013979,2]
[331886683,1720816251667,-151.0,0.00013979,2]
[331886685,1720816251676,-151.0,0.00013979,2]
[331886687,1720816251685,-251.526367,0.00013979,2]
[331886689,1720816251695,-251.526367,0.00013979,2]
[331886691,1720816251703,-251.526367,0.00013979,2]
[331886693,1720816251712,-251.526367,0.00013979,2]
[331886695,1720816251722,-382.105549,0.00013979,2]
[331886697,1720816251731,-382.105549,0.00013979,2]
[331886699,1720816251741,-382.105549,0.00013979,2]
[331886701,1720816251752,-382.105549,0.00013979,2]
[331886703,1720816251761,-122431.965777,0.0001398,2]
[331886705,1720816251771,-151.0,0.0001398,2]
[331886707,1720816251780,-151.0,0.0001398,2]
[331886709,1720816251789,-151.0,0.0001398,2]
[331886711,1720816251800,-151.0,0.0001398,2]
[331886713,1720816251810,-151.0,0.0001398,2]
[331886715,1720816251819,-151.0,0.0001398,2]
[331886717,1720816251828,-151.0,0.0001398,2]
[331886719,1720816251837,-500.0,0.00013988,2]
[331886721,1720816251846,-500.0,0.00013988,2]
[331886723,1720816251856,-500.0,0.00013988,2]
[331886725,1720816251866,-500.0,0.00013988,2]
[331886727,1720816251875,-500.0,0.00013988,2]
[331886729,1720816251884,-500.0,0.00013988,2]
[331886731,1720816251895,-500.0,0.00013988,2]
[331886733,1720816251904,-500.0,0.00013988,2]
[331886735,1720816251914,-620.32382283,0.00013988,2]
[331886737,1720816251923,-500.0,0.00013988,2]
[331886739,1720816251933,-500.0,0.00013988,2]
[331886741,1720816251943,-500.0,0.00013988,2]
[331886743,1720816251952,-500.0,0.00013988,2]
[331886745,1720816251962,-306.02194001,0.00013988,2]
[331886747,1720816251972,-500.0,0.00013988,2]
[331886749,1720816251981,-500.0,0.00013988,2]
[331886751,1720816251991,-257.22372594,0.00013988,2]
[331886753,1720816252000,-500.0,0.00013988,2]
[331886755,1720816252009,-500.0,0.00013988,2]
[331886758,1720816252022,-520.23,0.00013988,2]
[331886760,1720816252032,-509.09,0.00013988,2]
[331886762,1720816252042,-500.0,0.00013988,2]
[331886764,1720816252051,-500.0,0.00013988,2]
[331886766,1720816252061,-500.0,0.00013988,2]
[331886768,1720816252070,-500.0,0.00013988,2]
[331886770,1720816252079,-500.0,0.00013988,2]
[331886772,1720816252088,-546.99,0.00013988,2]
[331886774,1720816252097,-500.0,0.00013988,2]
[331886776,1720816252108,-500.0,0.00013988,2]
[331886778,1720816252118,-500.0,0.00013988,2]
[331886780,1720816252128,-500.0,0.00013988,2]
[331886782,1720816252138,-500.0,0.00013988,2]
[331886784,1720816252147,-255.38930836,0.00013988,2]
[331886786,1720816252157,-500.0,0.00013988,2]
[331886789,1720816252169,-500.0,0.00013988,2]
[331886791,1720816252178,-500.0,0.00013988,2]
[331886793,1720816252187,-500.0,0.00013988,2]
[331886795,1720816252196,-500.0,0.00013988,2]
[331886797,1720816252206,-500.0,0.00013988,2]
[331886799,1720816252215,-500.0,0.00013988,2]
[331886801,1720816252225,-500.0,0.00013988,2]
[331886803,1720816252234,-500.0,0.00013988,2]
[331886805,1720816252243,-500.0,0.00013988,2]
[331886806,1720816252251,-500.0,0.00013988,2]
[331886808,1720816252261,-220.5689688,0.00013988,2]
[331886811,1720816252270,-500.0,0.00013988,2]
[331886813,1720816252279,-500.0,0.00013988,2]
[331886815,1720816252288,-500.0,0.00013988,2]
[331886817,1720816252297,-500.0,0.00013988,2]
[331886819,1720816252306,-500.0,0.00013988,2]
[331886821,1720816252316,-500.0,0.00013988,2]
[331886823,1720816252325,-500.0,0.00013988,2]
[331886825,1720816252334,-500.0,0.00013988,2]
[331886827,1720816252343,-500.0,0.00013988,2]
[331886829,1720816252354,-500.0,0.00013988,2]
[331886831,1720816252363,-500.0,0.00013988,2]
[331886833,1720816252372,-500.0,0.00013988,2]
[331886834,1720816252381,-500.0,0.00013988,2]
[331886836,1720816252390,-710.58,0.00013988,2]
[331886838,1720816252399,-500.0,0.00013988,2]
[331886840,1720816252409,-500.0,0.00013988,2]
[331886842,1720816252418,-500.0,0.00013988,2]
[331886844,1720816252427,-500.0,0.00013988,2]
[331886846,1720816252437,-500.0,0.00013988,2]
[331886848,1720816252446,-500.0,0.00013988,2]
[331886851,1720816252455,-281.75897576,0.00013988,2]
[331886852,1720816252464,-500.0,0.00013988,2]
[331886854,1720816252474,-397.57861359,0.00013988,2]
[331886856,1720816252483,-500.0,0.00013988,2]
[331886858,1720816252492,-500.0,0.00013988,2]
[331886860,1720816252502,-500.0,0.00013988,2]
[331886862,1720816252511,-500.0,0.00013988,2]
[331886865,1720816252522,-500.0,0.00013988,2]
[331886867,1720816252532,-500.0,0.00013988,2]
[331886869,1720816252543,-500.0,0.00013988,2]
[331886871,1720816252553,-500.0,0.00013988,2]
[331886873,1720816252563,-500.0,0.00013988,2]
[331886875,1720816252572,-500.0,0.00013988,2]
[331886877,1720816252582,-389.39830576,0.00013988,2]
[331886879,1720816252592,-500.0,0.00013988,2]
[331886881,1720816252602,-500.0,0.00013988,2]
[331886883,1720816252611,-500.0,0.00013988,2]
[331886885,1720816252620,-500.0,0.00013988,2]
[331886887,1720816252630,-457.25808553,0.00013988,2]
[331886889,1720816252640,-500.0,0.00013988,2]
[331886892,1720816252650,-151.0,0.00013988,2]
[331886894,1720816252659,-580.2,0.00013988,2]
[331886896,1720816252670,-151.0,0.00013988,2]
[331886898,1720816252679,-944.22,0.00013988,2]
[331886900,1720816252688,-151.0,0.00013988,2]
[331886902,1720816252697,-500.0,0.00013988,2]
[331886904,1720816252706,-752.67,0.00013988,2]
[331886906,1720816252716,-505.0,0.00013988,2]
[331886908,1720816252725,-500.0,0.00013988,2]
[331886910,1720816252735,-500.0,0.00013988,2]
[331886912,1720816252746,-266.51017454,0.00013988,2]
[331886914,1720816252757,-500.0,0.00013988,2]
[331886916,1720816252766,-500.0,0.00013988,2]
[331886918,1720816252775,-500.0,0.00013988,2]
[331886920,1720816252785,-500.0,0.00013988,2]
[331886921,1720816252795,-500.0,0.00013988,2]
[331886922,1720816252807,-736.11,0.00013988,2]
[331886923,1720816252817,-500.0,0.00013988,2]
[331886924,1720816252828,-500.0,0.00013988,2]
[331886925,1720816252838,-976.89,0.00013988,2]
[331886926,1720816252847,-500.0,0.00013988,2]
[331886927,1720816252858,-500.0,0.00013988,2]
[331886928,1720816252867,-500.0,0.00013988,2]
[331886929,1720816252877,-500.0,0.00013988,2]
[331886930,1720816252886,-697.61,0.00013988,2]
[331886931,1720816252896,-500.0,0.00013988,2]
[331886932,1720816252905,-500.0,0.00013988,2]
[331886934,1720816252914,-500.0,0.00013988,2]
[331886936,1720816252923,-500.0,0.00013988,2]
[331886938,1720816252932,-500.0,0.00013988,2]
[331886940,1720816252941,-500.0,0.00013988,2]
[331886942,1720816252950,-921.32,0.00013988,2]
[331886944,1720816252959,-500.0,0.00013988,2]
[331886946,1720816252969,-500.0,0.00013988,2]
[331886948,1720816252978,-4093.31353314,0.0001399,2]
[331886999,1720816253443,-2756.90227324,0.0001399,2]
[331887038,1720816253807,-286.93626806,0.00013128,2]
[331887040,1720816253819,-187.05752997,0.00013128,2]
[331887042,1720816253828,-310.0,0.00013516,2]
[331887044,1720816253838,-151.0,0.00013878,2]
[331887046,1720816253848,-151.0,0.00013923,2]
[331887048,1720816253862,-151.0,0.00013958,2]
[331887050,1720816253871,-1329.619961,0.00013973,2]
[331887052,1720816253883,-45620.62666962,0.0001399,2]
[331887054,1720816253893,-2250.0,0.0001399,2]
[331887056,1720816253902,-151.0,0.0001399,2]
[331887058,1720816253912,-157.57858,0.0001399,2]
[331887060,1720816253923,-157.57858,0.0001399,2]
[331887062,1720816253933,-151.0,0.0001399,2]
[331887064,1720816253943,-151.0,0.0001399,2]
[331887066,1720816253953,-151.0,0.0001399,2]
[331887068,1720816253962,-151.0,0.0001399,2]
[331887070,1720816253971,-151.0,0.0001399,2]
[331887072,1720816253981,-206.246367,0.0001399,2]
[331887074,1720816253991,-206.246367,0.0001399,2]
[331887076,1720816254001,-184.749076,0.0001399,2]
[331887078,1720816254010,-184.749076,0.0001399,2]
[331887080,1720816254019,-151.0,0.0001399,2]
[331887082,1720816254029,-151.0,0.0001399,2]
[331887084,1720816254039,-301.19357159,0.00013999,2]
[331887086,1720816254048,-3355.93107424,0.00013999,2]
[331887088,1720816254057,-6352.56686144,0.00014,2]
[331887091,1720816254069,-70500.0000015,0.00014,2]
[331887093,1720816254081,-8081.28438641,0.00014,2]
[331887095,1720816254092,-1599.08934919,0.00014,2]
[331887097,1720816254104,-746.60009089,0.00014,2]
[331887099,1720816254119,-443.07349567,0.00014,2]
[331887101,1720816254130,-122512.29412527,0.00014,2]
[331887103,1720816254144,-7091.87739909,0.00014,2]
[331887104,1720816254155,-831.48450349,0.00014,2]
[331887106,1720816254167,-650.36277005,0.00014,2]
[331887108,1720816254179,-341.65759013,0.00014,2]
[331887110,1720816254190,-427.18428536,0.00014,2]
[331887112,1720816254202,-537.88,0.00014,2]
[331887113,1720816254213,-768.44720034,0.00014,2]
[331887115,1720816254224,-357.62507192,0.00014,2]
[331887117,1720816254236,-715.36994382,0.00014,2]
[331887119,1720816254247,-1255.06367634,0.00014,2]
[331887120,1720816254257,-11505.56338237,0.00014,2]
[331887122,1720816254268,-3767.59533793,0.00014,2]
[331887124,1720816254279,-839.10109103,0.00014,2]
[331887126,1720816254290,-699.84660329,0.00014,2]
[331887127,1720816254301,-2314.14804842,0.00014,2]
[331887129,1720816254313,-1570.55517767,0.00014,2]
[331887132,1720816254328,-748.63230573,0.00014,2]
[331887133,1720816254340,-180204.26649294,0.00014,2]
[331887135,1720816254353,-2383.28505014,0.00014,2]
[331887253,1720816255992,-3462.17296952,0.00014,2]
[331887255,1720816256004,-931.13278959,0.00014,2]
[331887257,1720816256017,-16714.51216693,0.00014,2]
[331887287,1720816256292,-151.0,0.00013878,2]
[331887289,1720816256303,-151.0,0.00013923,2]
[331887291,1720816256312,-151.0,0.00013958,2]
[331887293,1720816256321,-100.56974129,0.00013964,2]
[331887295,1720816256333,-50.43025871,0.00013964,2]
[331887297,1720816256342,-2302.78384348,0.00014,2]
[331887299,1720816256353,-1000.54103258,0.00014,2]
[331887302,1720816256366,-458.27649239,0.00014,2]
[331887304,1720816256377,-585.79333653,0.00014,2]
[331887306,1720816256388,-3172.45,0.00014,2]
[331887308,1720816256399,-11823.59982305,0.00014,2]
[331887310,1720816256409,-1671.17631581,0.00014,2]
[331887312,1720816256420,-1740.74654837,0.00014,2]
[331887314,1720816256432,-4338.00905533,0.00014,2]
[331887317,1720816256443,-430.18684934,0.00014,2]
[331887319,1720816256456,-430.09096335,0.00014,2]
[331887321,1720816256466,-7858.78588056,0.00014,2]
[331887323,1720816256478,-11521.51,0.00014,2]
[331887325,1720816256489,-596.79156854,0.00014,2]
[331887328,1720816256500,-473.16259154,0.00014,2]
[331887330,1720816256516,-22709.48189385,0.00014,2]
[331887332,1720816256528,-506.28464956,0.00014,2]
[331887334,1720816256540,-3885.10398628,0.00014,2]
[331887337,1720816256551,-753.61,0.00014,2]
[331887339,1720816256562,-346.76974357,0.00014,2]
[331887341,1720816256573,-1015.91279629,0.00014,2]
[331887343,1720816256584,-2439.94300744,0.00014,2]
[331887345,1720816256597,-3476.2185258,0.00014,2]
[331887350,1720816256631,-1000.5385,0.00014,2]
[331887352,1720816256642,-1707.0,0.00014,2]
[331887354,1720816256654,-1568.3092,0.00014,2]
[331887356,1720816256664,-4281.62023915,0.00014,2]
[331887358,1720816256675,-3222.38164255,0.00014,2]
[331887361,1720816256693,-8607.401193,0.00014,2]
[331887363,1720816256702,-2446.36075539,0.00014,2]
[331887365,1720816256713,-30861.97877135,0.00014,2]
[331887367,1720816256723,-3693.93006249,0.00014,2]
[331887369,1720816256734,-5152.44035242,0.00014,2]
[331887372,1720816256753,-12571.36622906,0.00014,2]
[331887375,1720816256764,-743.62877208,0.00014,2]
[331887377,1720816256775,-15461.51814751,0.00014,2]
[331887379,1720816256787,-956.17199593,0.00014,2]
[331887381,1720816256803,-123785.70194249,0.00014,2]
[331887383,1720816256815,-132188.0,0.00014,2]
[331887385,1720816256826,-5143.26,0.00014,2]
[331887388,1720816256838,-14173.92162359,0.00014,2]
[331887390,1720816256849,-104446.64236568,0.00014,2]
[331887392,1720816256862,-471.01190175,0.00014,2]
[331887394,1720816256872,-1494.96480527,0.00014,2]
[331887396,1720816256886,-1441.11415,0.00014,2]
[331887400,1720816256910,-27799.89231496,0.00014,2]
[331887402,1720816256922,-57440.000016,0.00014,2]
[331887404,1720816256933,-166144.81386982,0.00014,2]
[331887406,1720816256944,-4349.09017876,0.00014,2]
[331887418,1720816260168,155.0,0.00011199,2]
[331887419,1720816375181,423.59,0.00010943,2]
[331887420,1720816398227,155.0,0.00011199,2]
[331887421,1720816401894,3000.0,0.00025321,120]
[331887422,1720816402364,2000.0,0.00026999,120]
[331887424,1720816456168,6248.04512761,0.00011199,2]
[331887425,1720816608018,1055.92728241,0.00011199,2]
[331887426,1720816659492,889.29811363,0.00011199,2]
[331887427,1720816666463,18246.67208275,0.00011199,2]
[331887428,1720816702491,613.01736691,0.00011199,2]
[331887429,1720816704194,155.0,0.00011199,2]
[331887430,1720816711718,496.10852137,0.00011199,2]
[331887431,1720816714302,242.59992014,0.00011199,2]
[331887432,1720816725285,438.05939194,0.00011199,2]
[331887433,1720816728502,431.44595972,0.00011199,2]
[331887435,1720816729565,202.34507322,0.00011199,2]
[331887436,1720816730016,364.6602356,0.00011199,2]
[331887437,1720816740648,155.17578184,0.00011199,2]
[331887438,1720816741699,157.09136639,0.00011199,2]
[331887439,1720816742060,259.91784709,0.00011199,2]
[331887440,1720816743198,192.63331478,0.00011199,2]
[331887441,1720816746461,186.51762411,0.00011199,2]
[331887442,1720816748357,155.0,0.00011199,2]
[331887443,1720816751299,294.11862641,0.00011199,2]
[331887444,1720816752058,155.0,0.00011199,2]
[331887445,1720816768722,173.88799368,0.00011199,2]
[331887448,1720816800360,210.42420189,0.00011199,2]
[331887450,1720816802321,1631.04293426,0.00011199,2]
[331887451,1720816814449,1253.99426123,0.00011199,2]
[331887453,1720816849675,155.57686959,0.00011199,2]
[331887455,1720816969514,422.27,0.00010559,2]
[331887457,1720817033552,269.90760611,0.00011199,2]
[331887458,1720817042510,366.47039512,0.00011199,2]